[Event "Late-Titled-Tuesday-Blitz-June-18-2024"]
[Site "Chess.com"]
[Date "2024.06.18"]
[Round "4"]
[White "olawsson"]
[Black "Road2GM3000"]
[Result "0-1"]
[WhiteElo "2160"]
[BlackElo "2456"]
[TimeControl "180+1"]
[EndTime "14:42:01 PDT"]
[Termination "Road2GM3000 won by resignation"]

1. d4 {[%clk 0:03:00.9]} 1... d5 {[%clk 0:03:00.3]} 2. c4 {[%clk 0:02:59.9]}
2... c6 {[%clk 0:03:00.6]} 3. cxd5 {[%clk 0:02:59.3]} 3... cxd5 {[%clk
0:03:01.5]} 4. Nc3 {[%clk 0:02:59.5]} 4... Nf6 {[%clk 0:03:02.3]} 5. Nf3 {[%clk
0:02:59]} 5... Nc6 {[%clk 0:03:03.1]} 6. Bf4 {[%clk 0:02:59.2]} 6... a6 {[%clk
0:03:03.9]} 7. e3 {[%clk 0:02:59.2]} 7... Bf5 {[%clk 0:03:04.6]} 8. Ne5 {[%clk
0:02:56.6]} 8... g6 {[%clk 0:03:02.9]} 9. Nxc6 {[%clk 0:02:55.2]} 9... bxc6
{[%clk 0:03:03.3]} 10. Qa4 {[%clk 0:02:55.2]} 10... Bd7 {[%clk 0:02:56.6]} 11.
Qc2 {[%clk 0:02:44.7]} 11... Bg7 {[%clk 0:02:56.4]} 12. Na4 {[%clk 0:02:44.2]}
12... O-O {[%clk 0:02:56.2]} 13. Nc5 {[%clk 0:02:44.3]} 13... Bf5 {[%clk
0:02:56.4]} 14. Bd3 {[%clk 0:02:44.3]} 14... Bxd3 {[%clk 0:02:55.1]} 15. Qxd3
{[%clk 0:02:44.4]} 15... Nd7 {[%clk 0:02:54]} 16. Rc1 {[%clk 0:02:41.2]} 16...
Nxc5 {[%clk 0:02:53.6]} 17. Rxc5 {[%clk 0:02:40.7]} 17... Qb6 {[%clk 0:02:54.1]}
18. Qc3 {[%clk 0:02:36.2]} 18... Rac8 {[%clk 0:02:36.7]} 19. O-O {[%clk
0:02:33]} 19... Rfe8 {[%clk 0:02:09.8]} 20. Rc1 {[%clk 0:02:21.9]} 20... e5
{[%clk 0:01:07.6]} 21. dxe5 {[%clk 0:02:16.3]} 21... Bf8 {[%clk 0:01:07.7]} 22.
Rxc6 {[%clk 0:02:13.5]} 22... Rxc6 {[%clk 0:01:08.3]} 23. Qxc6 {[%clk
0:02:13.7]} 23... Qxb2 {[%clk 0:01:08.7]} 24. h3 {[%clk 0:02:04]} 24... Re6
{[%clk 0:01:00]} 25. Qc2 {[%clk 0:01:56]} 25... Qa3 {[%clk 0:00:58]} 26. Rd1
{[%clk 0:01:43.6]} 26... Rb6 {[%clk 0:00:29.5]} 27. Rxd5 {[%clk 0:01:37.2]}
27... Kg7 {[%clk 0:00:06.5]} 28. Rd2 {[%clk 0:01:08.3]} 28... a5 {[%clk
0:00:05.1]} 29. Qc7 {[%clk 0:01:00.5]} 29... Qb4 {[%clk 0:00:01.5]} 30. Rd7
{[%clk 0:00:55.9]} 30... Qb1+ {[%clk 0:00:01.3]} 31. Kh2 {[%clk 0:00:55.2]}
31... Rb2 {[%clk 0:00:01]} 32. Rxf7+ {[%clk 0:00:54.5]} 32... Kg8 {[%clk
0:00:01.7]} 33. Rxh7 {[%clk 0:00:47]} 33... Qxa2 {[%clk 0:00:02]} 34. Bg3 {[%clk
0:00:20.6]} 34... Rc2 {[%clk 0:00:02.7]} 35. Qd7 {[%clk 0:00:19.1]} 35... Rd2
{[%clk 0:00:03.3]} 36. Qa7 {[%clk 0:00:16.1]} 36... a4 {[%clk 0:00:03.8]} 37.
Rb7 {[%clk 0:00:11.7]} 37... a3 {[%clk 0:00:04]} 38. e6 {[%clk 0:00:11.8]} 38...
Qxe6 {[%clk 0:00:04.2]} 39. Rb8 {[%clk 0:00:10.5]} 39... a2 {[%clk 0:00:03.8]}
40. Qa8 {[%clk 0:00:10.9]} 40... Qf7 {[%clk 0:00:04.4]} 41. Bd6 {[%clk
0:00:08.6]} 41... Rxd6 {[%clk 0:00:04.4]} 42. Qxa2 {[%clk 0:00:08.3]} 42... Qxa2
{[%clk 0:00:04.4]} 43. Rxf8+ {[%clk 0:00:07.8]} 43... Kxf8 {[%clk 0:00:04.2]}
0-1

[Event "Late-Titled-Tuesday-Blitz-June-18-2024"]
[Site "Chess.com"]
[Date "2024.06.18"]
[Round "4"]
[White "Abund"]
[Black "ACollins05"]
[Result "1-0"]
[WhiteElo "2676"]
[BlackElo "2409"]
[TimeControl "180+1"]
[EndTime "14:42:06 PDT"]
[Termination "Abund won by resignation"]

1. g3 {[%clk 0:02:57.5]} 1... d5 {[%clk 0:02:52.9]} 2. Bg2 {[%clk 0:02:57.3]}
2... Nf6 {[%clk 0:02:53.8]} 3. d4 {[%clk 0:02:57.2]} 3... Bf5 {[%clk 0:02:52.8]}
4. c4 {[%clk 0:02:56.8]} 4... c6 {[%clk 0:02:52.8]} 5. Qb3 {[%clk 0:02:56.7]}
5... Qb6 {[%clk 0:02:51]} 6. c5 {[%clk 0:02:53.8]} 6... Qxb3 {[%clk 0:02:37.4]}
7. axb3 {[%clk 0:02:54.7]} 7... Na6 {[%clk 0:02:37.7]} 8. Bd2 {[%clk 0:02:45]}
8... e5 {[%clk 0:02:33.4]} 9. dxe5 {[%clk 0:02:40]} 9... Nd7 {[%clk 0:02:33.5]}
10. b4 {[%clk 0:02:39.7]} 10... Nxe5 {[%clk 0:02:31.5]} 11. Bc3 {[%clk
0:02:40.2]} 11... Nd7 {[%clk 0:02:23.5]} 12. Nf3 {[%clk 0:02:35.5]} 12... Nc7
{[%clk 0:02:22.1]} 13. Nd4 {[%clk 0:02:33.2]} 13... Bg6 {[%clk 0:02:17.8]} 14.
Nd2 {[%clk 0:02:31.2]} 14... Be7 {[%clk 0:02:17.6]} 15. N2b3 {[%clk 0:02:30.4]}
15... Bf6 {[%clk 0:02:14.6]} 16. Na5 {[%clk 0:02:25.9]} 16... Rb8 {[%clk
0:02:13.7]} 17. h4 {[%clk 0:02:19.9]} 17... h6 {[%clk 0:02:10.6]} 18. Bh3 {[%clk
0:02:18.1]} 18... Bxd4 {[%clk 0:02:01.8]} 19. Bxd4 {[%clk 0:02:17.8]} 19... Rg8
{[%clk 0:01:56.8]} 20. O-O {[%clk 0:01:57.8]} 20... Ne6 {[%clk 0:01:56.6]} 21.
Bc3 {[%clk 0:01:54.3]} 21... Ke7 {[%clk 0:01:49.3]} 22. Nb3 {[%clk 0:01:43.2]}
22... a6 {[%clk 0:01:48]} 23. Rfe1 {[%clk 0:01:41.3]} 23... Nf6 {[%clk
0:01:43.6]} 24. f3 {[%clk 0:01:40.7]} 24... Rgd8 {[%clk 0:01:40.6]} 25. Na5
{[%clk 0:01:32]} 25... d4 {[%clk 0:01:39.2]} 26. Bd2 {[%clk 0:01:31.4]} 26...
Nd5 {[%clk 0:01:39.3]} 27. Nc4 {[%clk 0:01:30.1]} 27... Nec7 {[%clk 0:01:30.5]}
28. e4 {[%clk 0:01:18.1]} 28... dxe3 {[%clk 0:01:30.1]} 29. Bxe3 {[%clk
0:01:18.5]} 29... Nxe3 {[%clk 0:01:28]} 30. Rxe3+ {[%clk 0:01:19.4]} 30... Kf8
{[%clk 0:01:28.2]} 31. Nd6 {[%clk 0:01:10.1]} 31... Ne8 {[%clk 0:01:23.8]} 32.
Rd1 {[%clk 0:01:07.3]} 32... Nf6 {[%clk 0:01:16.5]} 33. Rd4 {[%clk 0:00:59]}
33... Nd5 {[%clk 0:01:15]} 34. Re2 {[%clk 0:00:59.1]} 34... b6 {[%clk
0:01:07.3]} 35. Kf2 {[%clk 0:00:58.3]} 35... a5 {[%clk 0:01:07.1]} 36. Nc4
{[%clk 0:00:52.6]} 36... bxc5 {[%clk 0:00:43.4]} 37. bxc5 {[%clk 0:00:51.1]}
37... Rb4 {[%clk 0:00:40.8]} 38. Red2 {[%clk 0:00:50.5]} 38... a4 {[%clk
0:00:28.7]} 39. Ne5 {[%clk 0:00:36.2]} 39... Rxd4 {[%clk 0:00:27.4]} 40. Rxd4
{[%clk 0:00:37.1]} 40... Rb8 {[%clk 0:00:27.3]} 41. Nxc6 {[%clk 0:00:37.7]}
41... Rxb2+ {[%clk 0:00:27.1]} 42. Ke1 {[%clk 0:00:38.4]} 42... Nf6 {[%clk
0:00:11.4]} 43. Rxa4 {[%clk 0:00:26.1]} 43... Rc2 {[%clk 0:00:11.8]} 44. Ra8+
{[%clk 0:00:21.8]} 44... Ne8 {[%clk 0:00:12.2]} 45. Bd7 {[%clk 0:00:20.1]} 45...
f6 {[%clk 0:00:12.7]} 46. Nd4 {[%clk 0:00:20.4]} 46... Ke7 {[%clk 0:00:09.2]}
47. Bxe8 {[%clk 0:00:17.8]} 47... Bxe8 {[%clk 0:00:10.1]} 48. Rxe8+ {[%clk
0:00:16.7]} 48... Kxe8 {[%clk 0:00:09]} 49. Nxc2 {[%clk 0:00:17.6]} 1-0

[Event "Late-Titled-Tuesday-Blitz-June-18-2024"]
[Site "Chess.com"]
[Date "2024.06.18"]
[Round "4"]
[White "HamedWafa4"]
[Black "FuenfgegenWilly"]
[Result "0-1"]
[WhiteElo "2658"]
[BlackElo "2529"]
[TimeControl "180+1"]
[EndTime "14:42:11 PDT"]
[Termination "FuenfgegenWilly won by checkmate"]

1. Nf3 {[%clk 0:03:00.9]} 1... f5 {[%clk 0:02:59.6]} 2. g3 {[%clk 0:02:55.9]}
2... Nf6 {[%clk 0:02:59.5]} 3. Bg2 {[%clk 0:02:55.9]} 3... g6 {[%clk 0:03:00.4]}
4. O-O {[%clk 0:02:56.2]} 4... Bg7 {[%clk 0:03:01.3]} 5. c4 {[%clk 0:02:55.9]}
5... O-O {[%clk 0:03:01.8]} 6. d4 {[%clk 0:02:56.8]} 6... d6 {[%clk 0:03:02]} 7.
Qb3 {[%clk 0:02:57.6]} 7... a5 {[%clk 0:02:59.9]} 8. Nc3 {[%clk 0:02:57.3]} 8...
Nc6 {[%clk 0:02:58]} 9. d5 {[%clk 0:02:56.7]} 9... Nb4 {[%clk 0:02:52.5]} 10.
Be3 {[%clk 0:02:49.6]} 10... h6 {[%clk 0:02:45.7]} 11. a3 {[%clk 0:02:49.1]}
11... Na6 {[%clk 0:02:44.1]} 12. Qc2 {[%clk 0:02:46.5]} 12... e5 {[%clk
0:02:35.5]} 13. dxe6 {[%clk 0:02:46.5]} 13... Bxe6 {[%clk 0:02:36.1]} 14. Nd4
{[%clk 0:02:46]} 14... Bxc4 {[%clk 0:02:27.1]} 15. Bxb7 {[%clk 0:02:44.7]} 15...
Ng4 {[%clk 0:01:56.2]} 16. Nd1 {[%clk 0:02:18.9]} 16... Nxe3 {[%clk 0:01:35.4]}
17. Nxe3 {[%clk 0:02:16.3]} 17... Bf7 {[%clk 0:01:29.1]} 18. Bxa8 {[%clk
0:02:09.9]} 18... Qxa8 {[%clk 0:01:22.4]} 19. Nb5 {[%clk 0:02:09.4]} 19... Nc5
{[%clk 0:01:13.9]} 20. Rac1 {[%clk 0:01:58.8]} 20... Qb7 {[%clk 0:01:10.3]} 21.
Nxc7 {[%clk 0:01:57.7]} 21... Bb3 {[%clk 0:01:06.3]} 22. Qd2 {[%clk 0:01:39.4]}
22... Qxc7 {[%clk 0:01:06.5]} 23. Nd5 {[%clk 0:01:40]} 23... Qf7 {[%clk
0:01:04.4]} 24. Nf4 {[%clk 0:01:35]} 24... Ne4 {[%clk 0:01:04]} 25. Qxa5 {[%clk
0:01:35]} 25... Bxb2 {[%clk 0:01:02.8]} 26. Rc7 {[%clk 0:01:34.8]} 26... Qf6
{[%clk 0:00:56.4]} 27. Nd5 {[%clk 0:01:27.5]} 27... Qe6 {[%clk 0:00:43.3]} 28.
Ne7+ {[%clk 0:01:08.9]} 28... Kh8 {[%clk 0:00:43.3]} 29. Qb4 {[%clk 0:01:05.7]}
29... Bg7 {[%clk 0:00:32.4]} 30. Nxg6+ {[%clk 0:01:04]} 30... Qxg6 {[%clk
0:00:32.3]} 31. Qxb3 {[%clk 0:01:04.6]} 31... f4 {[%clk 0:00:30.7]} 32. Kg2
{[%clk 0:00:49.9]} 32... Nd2 {[%clk 0:00:30.7]} 33. Qd1 {[%clk 0:00:20.6]} 33...
Nxf1 {[%clk 0:00:30.6]} 34. Qxf1 {[%clk 0:00:21.4]} 34... Qe4+ {[%clk
0:00:27.1]} 35. Kg1 {[%clk 0:00:21.8]} 35... fxg3 {[%clk 0:00:25.9]} 36. hxg3
{[%clk 0:00:21.8]} 36... Re8 {[%clk 0:00:21.6]} 37. e3 {[%clk 0:00:21.6]} 37...
Qa4 {[%clk 0:00:16.7]} 38. Qc1 {[%clk 0:00:20.7]} 38... Ra8 {[%clk 0:00:14.8]}
39. Kg2 {[%clk 0:00:17.1]} 39... Qe4+ {[%clk 0:00:12]} 40. Kg1 {[%clk
0:00:17.6]} 40... d5 {[%clk 0:00:11.3]} 41. Qc6 {[%clk 0:00:16.3]} 41... Rb8
{[%clk 0:00:10.1]} 42. Kh2 {[%clk 0:00:15.3]} 42... Rb1 {[%clk 0:00:09.6]} 43.
f3 {[%clk 0:00:06]} 43... Rb2+ {[%clk 0:00:06.3]} 44. Kh3 {[%clk 0:00:05.4]}
44... Qf5+ {[%clk 0:00:05.8]} 45. Kh4 {[%clk 0:00:04.1]} 45... Rh2# {[%clk
0:00:04.7]} 0-1

[Event "Late-Titled-Tuesday-Blitz-June-18-2024"]
[Site "Chess.com"]
[Date "2024.06.18"]
[Round "4"]
[White "aot317"]
[Black "arctic_t00"]
[Result "0-1"]
[WhiteElo "2543"]
[BlackElo "2733"]
[TimeControl "180+1"]
[EndTime "14:42:12 PDT"]
[Termination "arctic_t00 won by checkmate"]

1. d4 {[%clk 0:03:00.9]} 1... Nf6 {[%clk 0:02:59.5]} 2. c4 {[%clk 0:03:01.2]}
2... e6 {[%clk 0:02:59.9]} 3. Nf3 {[%clk 0:03:01.5]} 3... Bb4+ {[%clk
0:02:59.3]} 4. Nbd2 {[%clk 0:03:01]} 4... O-O {[%clk 0:02:58.3]} 5. a3 {[%clk
0:03:00.7]} 5... Be7 {[%clk 0:02:57.1]} 6. e4 {[%clk 0:03:00.8]} 6... d6 {[%clk
0:02:57.5]} 7. g3 {[%clk 0:03:00.5]} 7... a5 {[%clk 0:02:55.2]} 8. Bg2 {[%clk
0:03:00]} 8... Nfd7 {[%clk 0:02:49.9]} 9. O-O {[%clk 0:02:52.1]} 9... e5 {[%clk
0:02:49.9]} 10. b3 {[%clk 0:02:48.9]} 10... exd4 {[%clk 0:02:47.5]} 11. Bb2
{[%clk 0:02:38.5]} 11... c5 {[%clk 0:02:46.1]} 12. Ne1 {[%clk 0:02:34.9]} 12...
Nc6 {[%clk 0:02:44.3]} 13. f4 {[%clk 0:02:34.7]} 13... a4 {[%clk 0:02:37.7]} 14.
b4 {[%clk 0:02:25.5]} 14... cxb4 {[%clk 0:02:17.8]} 15. axb4 {[%clk 0:02:23.1]}
15... Nxb4 {[%clk 0:02:17.3]} 16. Bxd4 {[%clk 0:02:22.2]} 16... Nc5 {[%clk
0:02:13.2]} 17. Nc2 {[%clk 0:02:05.5]} 17... Nc6 {[%clk 0:01:51.8]} 18. Be3
{[%clk 0:01:47.1]} 18... Bf6 {[%clk 0:01:50.6]} 19. Ra2 {[%clk 0:01:45.6]} 19...
Re8 {[%clk 0:01:40.6]} 20. Na3 {[%clk 0:01:34]} 20... Nd4 {[%clk 0:01:26.7]} 21.
Nab1 {[%clk 0:01:07.8]} 21... Qa5 {[%clk 0:01:21.5]} 22. Ra3 {[%clk 0:00:56]}
22... Qb4 {[%clk 0:01:16.3]} 23. Ra2 {[%clk 0:00:49.3]} 23... Be6 {[%clk
0:01:06.6]} 24. Kh1 {[%clk 0:00:47.8]} 24... Bxc4 {[%clk 0:01:01.5]} 25. Nxc4
{[%clk 0:00:47.5]} 25... Qxc4 {[%clk 0:01:02.4]} 26. Rd2 {[%clk 0:00:46]} 26...
Ncb3 {[%clk 0:01:00]} 27. Rd3 {[%clk 0:00:45.6]} 27... a3 {[%clk 0:00:46.3]} 28.
Rc3 {[%clk 0:00:34.7]} 28... Qb4 {[%clk 0:00:44.7]} 29. Bxd4 {[%clk 0:00:18.6]}
29... Nxd4 {[%clk 0:00:41]} 30. Rxa3 {[%clk 0:00:13.7]} 30... Rxa3 {[%clk
0:00:40.6]} 31. Nxa3 {[%clk 0:00:14.6]} 31... Qxa3 {[%clk 0:00:39.9]} 32. Qb1
{[%clk 0:00:14.2]} 32... Qb3 {[%clk 0:00:38.9]} 33. Qa1 {[%clk 0:00:13.6]} 33...
h5 {[%clk 0:00:34]} 34. Qa5 {[%clk 0:00:13.4]} 34... Qb5 {[%clk 0:00:30.5]} 35.
Qc7 {[%clk 0:00:12.1]} 35... Qc6 {[%clk 0:00:28.3]} 36. Qa5 {[%clk 0:00:12.5]}
36... Qc5 {[%clk 0:00:17.5]} 37. Qa4 {[%clk 0:00:11.9]} 37... b5 {[%clk
0:00:17.2]} 38. Qa2 {[%clk 0:00:10.9]} 38... b4 {[%clk 0:00:14.7]} 39. Qb1
{[%clk 0:00:10.2]} 39... b3 {[%clk 0:00:14.5]} 40. Rc1 {[%clk 0:00:10.7]} 40...
Qa3 {[%clk 0:00:11.4]} 41. Qd3 {[%clk 0:00:10.5]} 41... Qxc1+ {[%clk 0:00:09.9]}
42. Bf1 {[%clk 0:00:10]} 42... b2 {[%clk 0:00:10.4]} 43. Kg2 {[%clk 0:00:09.1]}
43... b1=Q {[%clk 0:00:10.5]} 44. Qa6 {[%clk 0:00:09.5]} 44... Qd2+ {[%clk
0:00:10.2]} 45. Kh3 {[%clk 0:00:09.6]} 45... Qxe4 {[%clk 0:00:10.1]} 46. Qa3
{[%clk 0:00:04]} 46... Qf5+ {[%clk 0:00:10.4]} 47. g4 {[%clk 0:00:03.8]} 47...
Qxg4# {[%clk 0:00:10.6]} 0-1

[Event "Late-Titled-Tuesday-Blitz-June-18-2024"]
[Site "Chess.com"]
[Date "2024.06.18"]
[Round "4"]
[White "olakenn"]
[Black "teresin05"]
[Result "1-0"]
[WhiteElo "1877"]
[BlackElo "2268"]
[TimeControl "180+1"]
[EndTime "14:42:12 PDT"]
[Termination "olakenn won by checkmate"]

1. e4 {[%clk 0:03:00.9]} 1... c5 {[%clk 0:03:00]} 2. Nc3 {[%clk 0:03:00.6]} 2...
Nc6 {[%clk 0:03:00.2]} 3. g3 {[%clk 0:03:00.9]} 3... g6 {[%clk 0:03:00.5]} 4.
Bg2 {[%clk 0:03:01.2]} 4... Bg7 {[%clk 0:03:01.2]} 5. d3 {[%clk 0:03:01.5]} 5...
d6 {[%clk 0:03:01.9]} 6. Nge2 {[%clk 0:03:01.8]} 6... Rb8 {[%clk 0:03:02.6]} 7.
Be3 {[%clk 0:03:02]} 7... Nd4 {[%clk 0:03:01.3]} 8. Qd2 {[%clk 0:02:52.7]} 8...
b5 {[%clk 0:03:01]} 9. Nd1 {[%clk 0:02:48]} 9... b4 {[%clk 0:03:00]} 10. c3
{[%clk 0:02:43.3]} 10... Nxe2 {[%clk 0:02:55]} 11. Qxe2 {[%clk 0:02:42]} 11...
bxc3 {[%clk 0:02:52.3]} 12. bxc3 {[%clk 0:02:41.5]} 12... e5 {[%clk 0:02:49.5]}
13. Qd2 {[%clk 0:02:35]} 13... Ne7 {[%clk 0:02:46.5]} 14. Bh6 {[%clk 0:02:34.1]}
14... O-O {[%clk 0:02:42.8]} 15. h4 {[%clk 0:02:33.7]} 15... Bxh6 {[%clk
0:02:14.3]} 16. Qxh6 {[%clk 0:02:33.1]} 16... f6 {[%clk 0:02:14.7]} 17. Qd2
{[%clk 0:02:19.1]} 17... Be6 {[%clk 0:02:06.7]} 18. O-O {[%clk 0:02:16.7]} 18...
Qd7 {[%clk 0:01:57.3]} 19. h5 {[%clk 0:02:14.2]} 19... gxh5 {[%clk 0:01:54.3]}
20. Ne3 {[%clk 0:02:10.5]} 20... Ng6 {[%clk 0:01:52.3]} 21. f4 {[%clk
0:02:03.9]} 21... exf4 {[%clk 0:01:48.6]} 22. gxf4 {[%clk 0:02:03.1]} 22... Bg4
{[%clk 0:01:43]} 23. f5 {[%clk 0:01:41.6]} 23... Nh4 {[%clk 0:01:21.9]} 24. Nxg4
{[%clk 0:01:32.2]} 24... hxg4 {[%clk 0:01:22.8]} 25. Qh6 {[%clk 0:01:25.9]}
25... Nxg2 {[%clk 0:01:21.2]} 26. Kxg2 {[%clk 0:01:25.8]} 26... Qg7 {[%clk
0:01:16.8]} 27. Qh4 {[%clk 0:00:55.4]} 27... Rb2+ {[%clk 0:01:07.8]} 28. Kg3
{[%clk 0:00:53]} 28... Rfb8 {[%clk 0:00:59.8]} 29. Rf4 {[%clk 0:00:50.2]} 29...
Kh8 {[%clk 0:00:39]} 30. Rxg4 {[%clk 0:00:43.5]} 30... Qf7 {[%clk 0:00:39.2]}
31. Rh1 {[%clk 0:00:31.2]} 31... Rd2 {[%clk 0:00:16.1]} 32. Rg6 {[%clk
0:00:20.4]} 32... Rxd3+ {[%clk 0:00:15.6]} 33. Kf4 {[%clk 0:00:19.3]} 33... d5
{[%clk 0:00:14]} 34. Qxf6+ {[%clk 0:00:17]} 34... Qxf6 {[%clk 0:00:11]} 35. Rxf6
{[%clk 0:00:17.4]} 35... dxe4 {[%clk 0:00:11]} 36. Kxe4 {[%clk 0:00:16.6]} 36...
Rxc3 {[%clk 0:00:11.4]} 37. Rf7 {[%clk 0:00:14.3]} 37... Kg8 {[%clk 0:00:11.5]}
38. Rhxh7 {[%clk 0:00:13.3]} 38... Re8+ {[%clk 0:00:11.3]} 39. Kf4 {[%clk
0:00:12.1]} 39... Rc4+ {[%clk 0:00:11.2]} 40. Kf3 {[%clk 0:00:10.8]} 40... Rc3+
{[%clk 0:00:06.4]} 41. Kf4 {[%clk 0:00:10.9]} 41... Rc4+ {[%clk 0:00:06.1]} 42.
Kg5 {[%clk 0:00:11.1]} 42... a5 {[%clk 0:00:04.7]} 43. Rhg7+ {[%clk 0:00:08.3]}
43... Kh8 {[%clk 0:00:04.6]} 44. Rh7+ {[%clk 0:00:08.6]} 44... Kg8 {[%clk
0:00:04.6]} 45. Kf6 {[%clk 0:00:06.7]} 45... Rd8 {[%clk 0:00:03.5]} 46. Rfg7+
{[%clk 0:00:04.8]} 46... Kf8 {[%clk 0:00:03.9]} 47. Rh8# {[%clk 0:00:05.2]} 1-0

[Event "Late-Titled-Tuesday-Blitz-June-18-2024"]
[Site "Chess.com"]
[Date "2024.06.18"]
[Round "4"]
[White "Rutricks"]
[Black "BilodeauA"]
[Result "0-1"]
[WhiteElo "2810"]
[BlackElo "3012"]
[TimeControl "180+1"]
[EndTime "14:42:15 PDT"]
[Termination "BilodeauA won by resignation"]

1. c4 {[%clk 0:02:59.8]} 1... e5 {[%clk 0:02:59.9]} 2. Nc3 {[%clk 0:03:00.4]}
2... d6 {[%clk 0:03:00.4]} 3. g3 {[%clk 0:03:00.9]} 3... Nc6 {[%clk 0:02:59.5]}
4. Bg2 {[%clk 0:03:01.2]} 4... g6 {[%clk 0:02:59]} 5. e3 {[%clk 0:03:01.2]} 5...
Bg7 {[%clk 0:02:59.5]} 6. Nge2 {[%clk 0:03:01.9]} 6... Be6 {[%clk 0:02:59.1]} 7.
Nd5 {[%clk 0:02:56.4]} 7... Qd7 {[%clk 0:02:58.9]} 8. h3 {[%clk 0:02:56.1]} 8...
Nd8 {[%clk 0:02:56.4]} 9. b3 {[%clk 0:02:41.6]} 9... c6 {[%clk 0:02:56.4]} 10.
Ndc3 {[%clk 0:02:41.9]} 10... f5 {[%clk 0:02:48.9]} 11. d4 {[%clk 0:02:41.6]}
11... Nf6 {[%clk 0:02:46.5]} 12. Bb2 {[%clk 0:02:32.5]} 12... O-O {[%clk
0:02:43.7]} 13. dxe5 {[%clk 0:02:30.6]} 13... dxe5 {[%clk 0:02:43.8]} 14. Qxd7
{[%clk 0:02:31.3]} 14... Nxd7 {[%clk 0:02:44.5]} 15. O-O-O {[%clk 0:02:31.6]}
15... Nf7 {[%clk 0:02:39.8]} 16. Rd2 {[%clk 0:02:27.8]} 16... Rfd8 {[%clk
0:02:33.5]} 17. Rhd1 {[%clk 0:02:27.7]} 17... Bf8 {[%clk 0:02:33.3]} 18. Nb1
{[%clk 0:02:15.1]} 18... a5 {[%clk 0:02:28.2]} 19. Ba3 {[%clk 0:02:15.5]} 19...
Nc5 {[%clk 0:02:25.8]} 20. Rxd8 {[%clk 0:02:12.8]} 20... Nxd8 {[%clk 0:02:26.4]}
21. Nec3 {[%clk 0:01:57.6]} 21... Nf7 {[%clk 0:02:24.2]} 22. Kb2 {[%clk
0:01:46.3]} 22... e4 {[%clk 0:02:23.2]} 23. f4 {[%clk 0:01:42.4]} 23... exf3
{[%clk 0:02:08]} 24. Bxf3 {[%clk 0:01:42.7]} 24... Ne5 {[%clk 0:02:07.6]} 25.
Be2 {[%clk 0:01:43.2]} 25... b6 {[%clk 0:01:53]} 26. Kc2 {[%clk 0:01:38.1]}
26... Re8 {[%clk 0:01:51.1]} 27. Bf1 {[%clk 0:01:28.5]} 27... Bh6 {[%clk
0:01:50.8]} 28. Bc1 {[%clk 0:01:15.4]} 28... a4 {[%clk 0:01:47.5]} 29. Na3
{[%clk 0:00:20.1]} 29... axb3+ {[%clk 0:01:39.3]} 30. axb3 {[%clk 0:00:21]}
30... Na6 {[%clk 0:01:39.3]} 31. Na2 {[%clk 0:00:16.5]} 31... Nc5 {[%clk
0:01:19.1]} 32. Bg2 {[%clk 0:00:16.5]} 32... Ra8 {[%clk 0:01:13.8]} 33. Nc3
{[%clk 0:00:16]} 33... Kf7 {[%clk 0:01:09]} 34. Rf1 {[%clk 0:00:09.8]} 34... Ke7
{[%clk 0:01:09.2]} 35. Rd1 {[%clk 0:00:09.9]} 35... Ra7 {[%clk 0:01:01.3]} 36.
Nab1 {[%clk 0:00:10.1]} 36... Na6 {[%clk 0:00:58.1]} 37. Ba3+ {[%clk 0:00:09.7]}
37... Kf7 {[%clk 0:00:58.3]} 38. e4 {[%clk 0:00:10.4]} 38... Be3 {[%clk
0:00:51.1]} 39. Rf1 {[%clk 0:00:10]} 39... Kg7 {[%clk 0:00:50.1]} 40. Bd6 {[%clk
0:00:04.8]} 40... Nf7 {[%clk 0:00:48.1]} 41. Ba3 {[%clk 0:00:03.2]} 41... c5
{[%clk 0:00:41.3]} 42. exf5 {[%clk 0:00:01.6]} 42... Bxf5+ {[%clk 0:00:40.1]}
43. Ne4 {[%clk 0:00:01.7]} 43... h5 {[%clk 0:00:25.7]} 44. g4 {[%clk 0:00:01.9]}
44... hxg4 {[%clk 0:00:25.8]} 45. hxg4 {[%clk 0:00:02.8]} 45... Bxg4 {[%clk
0:00:26.4]} 46. Bb2+ {[%clk 0:00:03.7]} 46... Bd4 {[%clk 0:00:26.1]} 47. Bxd4+
{[%clk 0:00:04.1]} 47... cxd4 {[%clk 0:00:27]} 48. Kb2 {[%clk 0:00:03.6]} 48...
Nb4 {[%clk 0:00:26.6]} 49. Na3 {[%clk 0:00:03.5]} 49... Nd3+ {[%clk 0:00:27]}
50. Ka2 {[%clk 0:00:04]} 50... Bf5 {[%clk 0:00:24.8]} 51. Ng3 {[%clk 0:00:04]}
51... Bg4 {[%clk 0:00:21.7]} 52. Bf3 {[%clk 0:00:03.9]} 52... Bxf3 {[%clk
0:00:21.4]} 53. Rxf3 {[%clk 0:00:04.8]} 53... Nfe5 {[%clk 0:00:21.9]} 54. Rf1
{[%clk 0:00:04.4]} 54... Nb4+ {[%clk 0:00:21.2]} 55. Kb2 {[%clk 0:00:04.9]}
55... Ned3+ {[%clk 0:00:21.9]} 56. Kb1 {[%clk 0:00:05]} 56... Rxa3 {[%clk
0:00:22.3]} 57. Ne4 {[%clk 0:00:05.6]} 57... Rxb3+ {[%clk 0:00:22.6]} 0-1